lending/lending_fUSD_20260328
["ID","MTS","AMOUNT","RATE_DAILY","PERIOD"]
[418987000,1774713054388,-338.7383,0.000171,2]
[418987001,1774713054399,-1570.0,0.0001714,2]
[418987002,1774713054409,-1600.0,0.0001717,2]
[418987003,1774713054419,-474.0,0.00017192,2]
[418987004,1774713054429,-474.0,0.00017229,2]
[418987005,1774713054439,-2364.804081,0.00017248,7]
[418987006,1774713054450,-1252.0,0.00017281,2]
[418987007,1774713054459,-474.0,0.00017297,2]
[418987008,1774713054468,-474.0,0.00017342,2]
[418987009,1774713054477,-433.65933292,0.00017346,2]
[418987010,1774713054488,-1145.43339148,0.00017346,2]
[418987011,1774713054498,-248.24,0.00017362,2]
[418987012,1774713054508,-684.0,0.000175,7]
[418987013,1774713054518,-160.0,0.000175,7]
[418987014,1774713054527,-471.0,0.000175,7]
[418987015,1774713054536,-294.0,0.000175,7]
[418987016,1774713054546,-160.0,0.000175,7]
[418987017,1774713054555,-788.13942688,0.000177,2]
[418987018,1774713054565,-403.0,0.000177,5]
[418987019,1774713054574,-157.65,0.0001775,2]
[418987020,1774713054584,-620.0,0.0001778,2]
[418987021,1774713054594,-800.0,0.00017808,2]
[418987022,1774713054603,-1009.19329333,0.0001786,2]
[418987023,1774713054612,-517.0,0.00017882,5]
[418987024,1774713054622,-1231.34934276,0.0001789,2]
[418987025,1774713054631,-1079.00106241,0.0001789,2]
[418987026,1774713054640,-617.34,0.000179,2]
[418987027,1774713054650,-880.56,0.00017933,2]
[418987028,1774713054659,-500.0,0.00017973,2]
[418987029,1774713054669,-2807.0,0.0001799,2]
[418987030,1774713054678,-2807.0,0.0001799,2]
[418987031,1774713054688,-20000.0,0.0001799,2]
[418987032,1774713054697,-25106.70960159,0.00018,5]
[418987033,1774713054706,-110207.22457458,0.00018,2]
[418987034,1774713054715,-1200.0799361,0.00018,2]
[418987035,1774713054725,-1000.27229706,0.00018,2]
[418987036,1774713054734,-309.39391783,0.00018,2]
[418987037,1774713054744,-3606.94,0.00018,2]
[418987038,1774713054754,-200.0,0.00018,2]
[418987039,1774713054763,-2500.0,0.00018025,2]
[418987040,1774713054772,-979.594048,0.00018032,7]
[418987041,1774713054781,-293.0,0.00018056,2]
[418987042,1774713054791,-4609.0,0.0001806,2]
[418987043,1774713054800,-1791.1487817,0.000181,2]
[418987044,1774713054810,-4733.12,0.000182,2]
[418987045,1774713054820,-160.47,0.0001823,2]
[418987046,1774713054830,-2810.71,0.000183,2]
[418987047,1774713054840,-89113.55,0.00018356,2]
[418987048,1774713054848,-256.310612,0.0001838,7]
[418987049,1774713054858,-3517.0,0.00018385,2]
[418987050,1774713054868,-621.0,0.00018385,2]
[418987051,1774713054877,-1345.0,0.00018385,2]
[418987052,1774713054887,-1262.0,0.00018385,2]
[418987053,1774713054896,-418.463,0.00018385,2]
[418987054,1774713054905,-2468.0,0.00018385,2]
[418987055,1774713054915,-3765.0,0.00018385,2]
[418987056,1774713054923,-342.0,0.000184,30]
[418987057,1774713054933,-2218.1,0.000184,2]
[418987058,1774713054942,-444.415,0.000184,2]
[418987059,1774713054951,-16717.74,0.000185,2]
[418987060,1774713054961,-250.0,0.0001863,2]
[418987061,1774713054970,-2500.0,0.00018676,2]
[418987062,1774713054980,-90672.8719107,0.00018676,2]
[418987063,1774713054990,-248.24,0.00018681,2]
[418987064,1774713054999,-2500.0,0.000187,2]
[418987065,1774713055009,-387972.968732,0.00018701,2]
[418987066,1774713055019,-814.375195,0.00018736,2]
[418987067,1774713055028,-2129.0,0.0001881,2]
[418987068,1774713055038,-3374.17617676,0.00018892,2]
[418987069,1774713055047,-300.0,0.000189,6]
[418987070,1774713055056,-1600.0,0.00018904,2]
[418987071,1774713055066,-718.84917408,0.00018982,19]
[418987072,1774713055075,-5204.35500849,0.00019,2]
[418987073,1774713055084,-400.0,0.00019,2]
[418987074,1774713055096,-361.51253777,0.0001901,7]
[418987075,1774713055106,-5117.186762,0.00019027,7]
[418987076,1774713055117,-466343.2485359,0.00019095,2]
[418987077,1774713055129,-2500.0,0.00019177,2]
[418987078,1774713055139,-150.0,0.00019178,2]
[418987079,1774713055149,-150.0,0.00019178,2]
[418987080,1774713055159,-150.0,0.00019178,2]
[418987081,1774713055168,-167.28310642,0.00019178,2]
[418987082,1774713055178,-3000.0,0.00019178,2]
[418987083,1774713055187,-20291.19,0.00019178,2]
[418987084,1774713055197,-1339.61,0.00019178,2]
[418987085,1774713055206,-182.803556,0.00019178,2]
[418987086,1774713055215,-182.803556,0.00019178,2]
[418987087,1774713055225,-182.803556,0.00019178,2]
[418987088,1774713055234,-182.803556,0.00019178,2]
[418987089,1774713055243,-9245.710185,0.00019178,2]
[418987090,1774713055253,-9245.710185,0.00019178,2]
[418987091,1774713055262,-9245.710185,0.00019178,2]
[418987092,1774713055272,-9245.710185,0.00019178,2]
[418987093,1774713055281,-151.0,0.00019178,2]
[418987094,1774713055290,-151.0,0.00019178,2]
[418987095,1774713055300,-151.0,0.00019178,2]
[418987096,1774713055310,-150.0,0.00019178,2]
[418987097,1774713055320,-150.0,0.00019178,2]
[418987098,1774713055330,-260.20602756,0.00019178,2]
[418987099,1774713055340,-160.33263724,0.00019178,2]
[418987100,1774713055350,-150.0,0.00019178,2]
[418987101,1774713055360,-2000.0,0.000192,2]
[418987102,1774713055369,-168.19,0.00019355,2]
[418987103,1774713055379,-294.0,0.00019426,2]
[418987104,1774713055388,-151.0,0.0001953,2]
[418987105,1774713055397,-151.0,0.00019533,2]
[418987106,1774713055406,-151.0,0.00019533,2]
[418987107,1774713055416,-151.0,0.00019533,2]
[418987108,1774713055426,-151.0,0.00019533,2]
[418987109,1774713055435,-151.0,0.00019533,2]
[418987110,1774713055445,-151.0,0.00019533,2]
[418987111,1774713055454,-151.0,0.00019533,2]
[418987112,1774713055463,-151.0,0.00019533,2]
[418987113,1774713055472,-294.560932,0.00019533,2]
[418987114,1774713055482,-583.0597,0.000196,2]
[418987115,1774713055491,-4256.647346,0.000196,7]
[418987116,1774713055500,-2000.0,0.00019601,2]
[418987117,1774713055510,-2000.0,0.00019601,2]
[418987118,1774713055519,-2000.0,0.00019601,2]
[418987119,1774713055528,-2000.0,0.00019601,2]
[418987120,1774713055538,-2000.0,0.00019601,2]
[418987121,1774713055547,-2000.0,0.00019601,2]
[418987122,1774713055557,-2000.0,0.00019601,2]
[418987123,1774713055567,-2000.0,0.00019601,2]
[418987124,1774713055577,-2000.0,0.00019601,2]
[418987125,1774713055587,-2000.0,0.00019601,2]
[418987126,1774713055596,-233.7,0.00019658,2]
[418987127,1774713055606,-500.0,0.00019671,2]
[418987128,1774713055616,-160.47,0.0001972,2]
[418987129,1774713055626,-250.0,0.00019726,2]
[418987130,1774713055640,-150.0,0.00019726,2]
[418987131,1774713055649,-250.0,0.00019726,2]
[418987132,1774713055658,-2807.0,0.0001977,2]
[418987133,1774713055667,-2000.0,0.00019771,2]
[418987134,1774713055678,-2000.0,0.00019771,2]
[418987135,1774713055688,-2000.0,0.00019771,2]
[418987136,1774713055698,-2000.0,0.00019771,2]
[418987137,1774713055707,-2000.0,0.00019771,2]
[418987138,1774713055717,-2000.0,0.00019771,2]
[418987139,1774713055726,-2000.0,0.00019771,2]
[418987140,1774713055735,-2000.0,0.00019771,2]
[418987141,1774713055745,-2000.0,0.00019771,2]
[418987142,1774713055754,-2000.0,0.00019771,2]
[418987143,1774713055764,-6453.0,0.00019866,2]
[418987144,1774713055773,-2124.46464699,0.00019879,2]
[418987145,1774713055783,-4962.20389994,0.000199,3]
[418987146,1774713055793,-70204.63524833,0.000199,2]
[418987147,1774713055803,-617.34,0.000199,7]
[418987148,1774713055813,-12948.0,0.000199,2]
[418987149,1774713055823,-160.47,0.0001991,2]
[418987150,1774713055832,-400.0,0.0001997,2]
[418987151,1774713055841,-400.0,0.0001997,2]
[418987152,1774713055851,-2500.0,0.00019979,2]
[418987153,1774713055860,-120115.71839684,0.0001998,2]
[418987154,1774713055870,-1667.92154929,0.0001999,2]
[418987155,1774713055880,-610.96527926,0.00019999,2]
[418987156,1774713055890,-2500.0,0.00019999,2]
[418987157,1774713055985,-2500.0,0.00019999,2]
[418987158,1774713056005,-2500.0,0.00019999,2]
[418987159,1774713056016,-2500.0,0.00019999,2]
[418987160,1774713056026,-2500.0,0.00019999,2]
[418987161,1774713056037,-2500.0,0.00019999,2]
[418987162,1774713056047,-2500.0,0.00019999,2]
[418987163,1774713056056,-205.32062414,0.00019999,2]
[418987164,1774713056065,-2000.0,0.0002,2]
[418987165,1774713056076,-7037.94038787,0.0002,2]
[418987166,1774713056085,-1543.57418139,0.0002,2]
[418987167,1774713056095,-177.67652786,0.0002,2]
[418987168,1774713056104,-1479.66549822,0.0002,5]
[418987169,1774713056114,-25767.01048794,0.0002,2]
[418987170,1774713056124,-3950.0,0.0002,2]
[418987171,1774713056133,-1303.11925708,0.0002,2]
[418987172,1774713056142,-132963.43795022,0.0002,2]
[418987173,1774713056151,-2963.89118004,0.0002,7]
[418987174,1774713056161,-533.99638902,0.0002,7]
[418987175,1774713056170,-1051.95003212,0.0002,2]
[418987176,1774713056180,-2882.69319078,0.0002,2]
[418987177,1774713056190,-13011.25735572,0.0002,2]
[418987178,1774713056199,-152.0,0.0002,2]
[418987179,1774713056208,-2053.17635722,0.0002,2]
[418987180,1774713056218,-5112.22863877,0.0002,2]
[418987181,1774713056227,-150.0,0.0002,2]
[418987182,1774713056237,-3606.94,0.0002,2]
[418987183,1774713056246,-2400.0,0.0002,2]
[418987184,1774713056255,-161.336518,0.0002,2]
[418987185,1774713056265,-161.336518,0.0002,2]
[418987186,1774713056274,-161.336518,0.0002,2]
[418987187,1774713056283,-161.336518,0.0002,2]
[418987188,1774713056293,-151.0,0.0002,2]
[418987189,1774713056302,-186.803227,0.0002,2]
[418987190,1774713056313,-547.12046,0.0002,2]
[418987191,1774713056323,-547.12046,0.0002,2]
[418987192,1774713056333,-547.12046,0.0002,2]
[418987193,1774713056342,-547.12046,0.0002,2]
[418987194,1774713056352,-200.0,0.0002,2]
[418987195,1774713056362,-339.436127,0.0002,2]
[418987196,1774713056372,-339.436127,0.0002,2]
[418987197,1774713056384,-339.436127,0.0002,2]
[418987198,1774713056394,-339.436127,0.0002,2]
[418987199,1774713056403,-606.320897,0.0002,2]
[418987200,1774713056414,-606.320897,0.0002,2]
[418987201,1774713056423,-606.320897,0.0002,2]
[418987202,1774713056432,-151.0,0.0002,2]
[418987203,1774713056441,-295.36692459,0.0002,2]
[418987204,1774713056450,-606.320897,0.0002,2]
[418987205,1774713056460,-155.156545,0.0002,2]
[418987206,1774713056469,-151.0,0.0002,2]
[418987207,1774713056479,-151.0,0.0002,2]
[418987208,1774713056488,-151.0,0.0002,2]
[418987209,1774713056498,-214.467685,0.0002,2]
[418987210,1774713056508,-214.467685,0.0002,2]
[418987211,1774713056517,-214.467685,0.0002,2]
[418987212,1774713056527,-151.0,0.0002,2]
[418987213,1774713056537,-214.467685,0.0002,2]
[418987214,1774713056546,-203.859965,0.0002,2]
[418987215,1774713056556,-1000.0,0.0002,7]
[418987216,1774713056566,-3607.306796,0.0002001,2]
[418987217,1774713056578,-250.0,0.00020072,2]
[418987218,1774713056587,-4733.12,0.000201,2]
[418987219,1774713056597,-739.189272,0.00020136,2]
[418987220,1774713056607,-739.189272,0.00020136,2]
[418987221,1774713056617,-739.189272,0.00020136,2]
[418987222,1774713056627,-739.189272,0.00020136,2]
[418987223,1774713056637,-1837.713949,0.00020136,2]
[418987224,1774713056647,-1837.713949,0.00020136,2]
[418987225,1774713056656,-1837.713949,0.00020136,2]
[418987226,1774713056666,-1837.713949,0.00020136,2]
[418987227,1774713056675,-9245.710185,0.00020136,2]
[418987228,1774713056685,-9245.710185,0.00020136,2]
[418987229,1774713056695,-9245.710185,0.00020136,2]
[418987230,1774713056704,-9245.710185,0.00020136,2]
[418987231,1774713056714,-151.0,0.00020136,2]
[418987232,1774713056723,-151.0,0.00020136,2]
[418987233,1774713056733,-151.0,0.00020136,2]
[418987234,1774713056743,-2810.71,0.000202,2]
[418987235,1774713056753,-2218.1,0.000202,2]
[418987236,1774713056762,-151.0,0.000202,2]
[418987237,1774713056773,-151.0,0.000202,2]
[418987238,1774713056783,-151.0,0.000202,2]
[418987239,1774713056793,-151.0,0.000202,2]
[418987240,1774713056803,-165.49,0.00020249,2]
[418987241,1774713056814,-350.0,0.00020274,2]
[418987242,1774713056825,-150.0,0.00020274,2]
[418987243,1774713056836,-350.0,0.00020274,2]
[418987244,1774713056845,-5533.0,0.000203,3]
[418987245,1774713056855,-979.594048,0.00020384,7]
[418987246,1774713056864,-1570.0,0.0002041,2]
[418987247,1774713056874,-2699.90728654,0.0002041,2]
[418987248,1774713056883,-3620.0,0.00020463,2]
[418987249,1774713056892,-16717.74,0.000205,2]
[418987250,1774713056902,-165.49,0.000205,2]
[418987251,1774713056911,-7951.020938,0.00020512,7]
[418987252,1774713056920,-161.66,0.00020548,2]
[418987253,1774713056930,-21682.89,0.00020548,2]
[418987254,1774713056939,-430.48665564,0.00020572,2]
[418987255,1774713056949,-433.55,0.00020572,2]
[418987256,1774713056958,-2000.0,0.00020685,2]
[418987257,1774713056968,-2000.0,0.00020685,2]
[418987258,1774713056977,-2000.0,0.00020685,2]
[418987259,1774713056987,-2000.0,0.00020685,2]
[418987260,1774713056996,-2000.0,0.00020685,2]
[418987261,1774713057006,-2000.0,0.00020685,2]
[418987262,1774713057015,-2000.0,0.00020685,2]
[418987263,1774713057024,-2000.0,0.00020685,2]
[418987264,1774713057034,-2000.0,0.00020685,2]
[418987265,1774713057043,-2000.0,0.00020685,2]
[418987266,1774713057054,-22817.37413052,0.000207,2]
[418987267,1774713057064,-165.48218468,0.0002075,2]
[418987268,1774713057073,-256.310612,0.00020777,7]
[418987269,1774713057083,-5533.0,0.000208,5]
[418987270,1774713057093,-450.0,0.00020822,2]
[418987271,1774713057103,-150.0,0.00020822,2]
[418987272,1774713057112,-450.0,0.00020822,2]
[418987273,1774713057122,-764.9577,0.000209,2]
[418987274,1774713057132,-20000.0,0.00021,2]
[418987275,1774713057142,-1201.60789136,0.00021,2]
[418987276,1774713057151,-198.31810907,0.00021,2]
[418987277,1774713057162,-160.0,0.00021,7]
[418987278,1774713057171,-450.0,0.00021,2]
[418987279,1774713057180,-1887.73233068,0.00021096,2]
[418987280,1774713057190,-500.0,0.00021101,2]
[418987281,1774713057198,-500.0,0.00021101,2]
[418987282,1774713057208,-500.0,0.00021101,2]
[418987283,1774713057218,-500.0,0.00021101,2]
[418987284,1774713057227,-500.0,0.00021101,2]
[418987285,1774713057237,-679.81219059,0.00021101,2]
[418987286,1774713057247,-500.0,0.00021101,2]
[418987287,1774713057257,-500.0,0.00021101,2]
[418987288,1774713057267,-967.99741926,0.00021101,2]
[418987289,1774713057276,-657.25774485,0.00021101,2]
[418987290,1774713057286,-1300.0,0.00021101,2]
[418987291,1774713057295,-500.0,0.00021101,2]
[418987292,1774713057304,-594.27289164,0.00021101,2]
[418987293,1774713057313,-1300.0,0.00021101,2]
[418987294,1774713057323,-2500.0,0.00021101,2]
[418987295,1774713057332,-1300.0,0.00021101,2]
[418987296,1774713057342,-1000.0,0.00021101,2]
[418987297,1774713057351,-2500.0,0.00021101,2]
[418987298,1774713057360,-1300.0,0.00021101,2]
[418987299,1774713057370,-1000.0,0.00021101,2]
[418987300,1774713057380,-500.0,0.00021101,2]
[418987301,1774713057389,-618.25217888,0.00021101,2]
[418987302,1774713057398,-2500.0,0.00021101,2]
[418987303,1774713057407,-1300.0,0.00021101,2]
[418987304,1774713057417,-586.08831931,0.00021101,2]
[418987305,1774713057427,-2500.0,0.00021101,2]
[418987306,1774713057436,-1300.0,0.00021101,2]
[418987307,1774713057445,-1000.0,0.00021101,2]
[418987308,1774713057455,-2500.0,0.00021101,2]
[418987309,1774713057464,-1000.0,0.00021101,2]
[418987310,1774713057473,-1300.0,0.00021101,2]
[418987311,1774713057483,-2500.0,0.00021101,2]
[418987312,1774713057492,-1000.0,0.00021101,2]
[418987313,1774713057501,-1300.0,0.00021101,2]
[418987314,1774713057510,-2500.0,0.00021101,2]
[418987315,1774713057519,-1000.0,0.00021101,2]
[418987316,1774713057528,-1300.0,0.00021101,2]
[418987317,1774713057537,-1000.0,0.00021101,2]
[418987318,1774713057546,-2500.0,0.00021101,2]
[418987319,1774713057556,-1300.0,0.00021101,2]
[418987320,1774713057565,-1000.0,0.00021101,2]
[418987321,1774713057574,-2500.0,0.00021101,2]
[418987322,1774713057583,-500.0,0.00021101,2]
[418987323,1774713057592,-1300.0,0.00021101,2]
[418987324,1774713057601,-151.0,0.00021101,2]
[418987325,1774713057610,-1000.0,0.00021101,2]
[418987326,1774713057619,-2500.0,0.00021101,2]
[418987327,1774713057629,-792.06819822,0.00021101,2]
[418987328,1774713057638,-1300.0,0.00021101,2]
[418987329,1774713057648,-1000.0,0.00021101,2]
[418987330,1774713057658,-2500.0,0.00021101,2]
[418987331,1774713057667,-1300.0,0.00021101,2]
[418987332,1774713057676,-505.11666495,0.00021101,2]
[418987333,1774713057686,-1000.0,0.00021101,2]
[418987334,1774713057697,-2500.0,0.00021101,2]
[418987335,1774713057792,-2180.1819813,0.00021101,2]
[418987336,1774713057803,-151.0,0.00021101,2]
[418987337,1774713057813,-2500.0,0.00021101,2]
[418987338,1774713057822,-1000.0,0.00021101,2]
[418987339,1774713057832,-1000.0,0.00021101,2]
[418987340,1774713057842,-1300.0,0.00021101,2]
[418987341,1774713057851,-4742.69033101,0.00021101,2]
[418987342,1774713057861,-500.0,0.00021101,2]
[418987343,1774713057871,-1135.11064733,0.00021101,2]
[418987344,1774713057882,-1300.0,0.00021101,2]
[418987345,1774713057892,-8100.0,0.00021101,2]
[418987346,1774713057902,-500.0,0.00021101,2]
[418987347,1774713057912,-500.0,0.00021101,2]
[418987348,1774713057922,-1300.0,0.00021101,2]
[418987349,1774713057932,-8100.0,0.00021101,2]
[418987350,1774713057941,-518.0482338,0.00021101,2]
[418987351,1774713057950,-500.0,0.00021101,2]
[418987352,1774713057960,-8100.0,0.00021101,2]
[418987353,1774713057970,-1300.0,0.00021101,2]
[418987354,1774713057979,-500.0,0.00021101,2]
[418987355,1774713057988,-500.0,0.00021101,2]
[418987356,1774713057999,-8100.0,0.00021101,2]
[418987357,1774713058008,-1300.0,0.00021101,2]
[418987358,1774713058017,-500.0,0.00021101,2]
[418987359,1774713058027,-500.0,0.00021101,2]
[418987360,1774713058037,-8100.0,0.00021101,2]
[418987361,1774713058046,-1300.0,0.00021101,2]
[418987362,1774713058056,-500.0,0.00021101,2]
[418987363,1774713058066,-500.0,0.00021101,2]
[418987364,1774713058076,-8100.0,0.00021101,2]
[418987365,1774713058087,-1300.0,0.00021101,2]
[418987366,1774713058097,-900.0,0.00021101,2]
[418987367,1774713058107,-500.0,0.00021101,2]
[418987368,1774713058116,-1300.0,0.00021101,2]
[418987369,1774713058126,-500.0,0.00021101,2]
[418987370,1774713058135,-8100.0,0.00021101,2]
[418987371,1774713058145,-1300.0,0.00021101,2]
[418987372,1774713058155,-900.0,0.00021101,2]
[418987373,1774713058165,-500.0,0.00021101,2]
[418987374,1774713058175,-1300.0,0.00021101,2]
[418987375,1774713058185,-1300.0,0.00021101,2]
[418987376,1774713058194,-900.0,0.00021101,2]
[418987377,1774713058204,-500.0,0.00021101,2]
[418987378,1774713058214,-8100.0,0.00021101,2]
[418987379,1774713058224,-586.25077889,0.00021101,2]
[418987380,1774713058234,-1300.0,0.00021101,2]
[418987381,1774713058244,-1300.0,0.00021101,2]
[418987382,1774713058254,-900.0,0.00021101,2]
[418987383,1774713058263,-500.0,0.00021101,2]
[418987384,1774713058273,-8100.0,0.00021101,2]
[418987385,1774713058283,-1300.0,0.00021101,2]
[418987386,1774713058293,-1300.0,0.00021101,2]
[418987387,1774713058304,-500.0,0.00021101,2]
[418987388,1774713058314,-900.0,0.00021101,2]
[418987389,1774713058324,-8100.0,0.00021101,2]
[418987390,1774713058334,-1300.0,0.00021101,2]
[418987391,1774713058345,-1300.0,0.00021101,2]
[418987392,1774713058354,-500.0,0.00021101,2]
[418987393,1774713058364,-900.0,0.00021101,2]
[418987394,1774713058374,-8100.0,0.00021101,2]
[418987395,1774713058384,-500.0,0.00021101,2]
[418987396,1774713058394,-1300.0,0.00021101,2]
[418987397,1774713058403,-1300.0,0.00021101,2]
[418987398,1774713058413,-887.34261108,0.00021101,2]
[418987399,1774713058422,-900.0,0.00021101,2]
[418987400,1774713058432,-8100.0,0.00021101,2]
[418987401,1774713058442,-500.0,0.00021101,2]
[418987402,1774713058452,-1300.0,0.00021101,2]
[418987403,1774713058462,-1498.81012003,0.00021101,2]
[418987404,1774713058472,-900.0,0.00021101,2]
[418987405,1774713058481,-8100.0,0.00021101,2]
[418987406,1774713058491,-500.0,0.00021101,2]
[418987407,1774713058501,-1300.0,0.00021101,2]
[418987408,1774713058511,-900.0,0.00021101,2]
[418987409,1774713058521,-13366.9011729,0.00021101,2]
[418987410,1774713058531,-500.0,0.00021101,2]
[418987411,1774713058541,-1300.0,0.00021101,2]
[418987412,1774713058551,-900.0,0.00021101,2]
[418987413,1774713058561,-500.0,0.00021101,2]
[418987414,1774713058571,-1300.0,0.00021101,2]
[418987415,1774713058581,-900.0,0.00021101,2]
[418987416,1774713058591,-500.0,0.00021101,2]
[418987417,1774713058602,-1300.0,0.00021101,2]
[418987418,1774713058612,-900.0,0.00021101,2]
[418987419,1774713058622,-500.0,0.00021101,2]
[418987420,1774713058632,-1300.0,0.00021101,2]
[418987421,1774713058641,-900.0,0.00021101,2]
[418987422,1774713058651,-500.0,0.00021101,2]
[418987423,1774713058661,-1300.0,0.00021101,2]
[418987424,1774713058671,-1517.8036691,0.00021101,2]
[418987425,1774713058680,-500.0,0.00021101,2]
[418987426,1774713058690,-2474.76110819,0.00021101,2]
[418987427,1774713058700,-500.0,0.00021101,2]
[418987428,1774713058710,-500.0,0.00021101,2]
[418987429,1774713058720,-500.0,0.00021101,2]
[418987430,1774713058729,-987.15605615,0.00021101,2]
[418987431,1774713058739,-207.98764,0.00021101,2]
[418987432,1774713058748,-207.98764,0.00021101,2]
[418987433,1774713058757,-207.98764,0.00021101,2]
[418987434,1774713058767,-207.98764,0.00021101,2]
[418987435,1774713058777,-151.0,0.00021101,2]
[418987436,1774713058787,-151.0,0.00021101,2]
[418987437,1774713058797,-208.752654,0.00021101,2]
[418987438,1774713058807,-182.803556,0.00021101,2]
[418987439,1774713058817,-182.803556,0.00021101,2]
[418987440,1774713058826,-182.803556,0.00021101,2]
[418987441,1774713058836,-182.803556,0.00021101,2]
[418987442,1774713058846,-500.0,0.00021101,2]
[418987443,1774713058856,-500.0,0.00021101,2]
[418987444,1774713058865,-500.0,0.00021101,2]
[418987445,1774713058875,-500.0,0.00021101,2]
[418987446,1774713058885,-500.0,0.00021101,2]
[418987447,1774713058894,-500.0,0.00021101,2]
[418987448,1774713058904,-500.0,0.00021101,2]
[418987449,1774713058914,-500.0,0.00021101,2]
[418987450,1774713058924,-776.11335293,0.00021101,2]
[418987451,1774713058934,-170.44482904,0.00021101,2]
[418987452,1774713058944,-500.0,0.00021337,2]
[418987453,1774713058954,-500.0,0.00021337,2]
[418987454,1774713058964,-594.34436232,0.00021337,2]
[418987455,1774713058974,-500.0,0.00021337,2]
[418987456,1774713058984,-500.0,0.00021337,2]
[418987457,1774713058995,-500.0,0.00021337,2]
[418987458,1774713059005,-500.0,0.00021337,2]
[418987459,1774713059014,-500.0,0.00021337,2]
[418987460,1774713059023,-500.0,0.00021337,2]
[418987461,1774713059033,-500.0,0.00021337,2]
[418987462,1774713059042,-500.0,0.00021337,2]
[418987463,1774713059052,-500.0,0.00021337,2]
[418987464,1774713059061,-500.0,0.00021337,2]
[418987465,1774713059071,-156.65188468,0.00021337,2]
[418987466,1774713059080,-1339.61,0.00021341,2]
[418987467,1774713059090,-466343.2485359,0.00021344,2]
[418987468,1774713059100,-150.0,0.00021362,30]
[418987469,1774713059110,-6428.26,0.0002137,2]
[418987470,1774713059119,-150.0,0.0002137,2]
[418987471,1774713059129,-550.0,0.0002137,2]
[418987472,1774713059139,-550.0,0.0002137,2]
[418987473,1774713059157,-1417.4,0.00021385,2]
[418987474,1774713059168,-621.0,0.00021385,2]
[418987475,1774713059177,-1262.0,0.00021385,2]
[418987476,1774713059186,-415.0,0.00021385,2]
[418987477,1774713059196,-2466.0,0.00021385,2]
[418987478,1774713059206,-702.542,0.00021385,2]
[418987479,1774713059216,-500.0,0.00021392,2]
[418987480,1774713059226,-500.0,0.00021447,2]
[418987481,1774713059236,-57972.36183467,0.000215,2]
[418987482,1774713059245,-223.75158866,0.000215,2]
[418987483,1774713059255,-500.0,0.00021502,2]
[418987484,1774713059266,-250.0,0.00021514,2]
[418987485,1774713059275,-500.0,0.00021557,2]
[418987486,1774713059285,-500.0,0.00021612,2]
[418987487,1774713059294,-500.0,0.00021667,2]
[418987488,1774713059304,-500.0,0.00021722,2]
[418987489,1774713059314,-282.33825005,0.00021738,7]
[418987490,1774713059323,-275.340974,0.00021739,7]
[418987491,1774713059332,-517.0,0.00021765,8]
[418987492,1774713059342,-500.0,0.00021777,2]
[418987493,1774713059352,-500.0,0.00021832,2]
[418987494,1774713059361,-1570.0,0.0002185,2]
[418987495,1774713059371,-2807.0,0.0002185,2]
[418987496,1774713059381,-9035.0,0.00021853,2]
[418987497,1774713059390,-500.0,0.00021887,2]
[418987498,1774713059400,-1570.0,0.0002189,2]
[418987499,1774713059493,-500.0,0.0002189,2]